fUSD/lending_fUSD_20250708
["ID","MTS","AMOUNT","RATE_DAILY","PERIOD"]
[370315094,1751950232251,-513.0,0.00028745,4]
[370315096,1751950232260,-196.22,0.00028772,2]
[370315098,1751950232270,-2434.0,0.00028891,7]
[370315100,1751950232279,-2048.10930637,0.000289,20]
[370315102,1751950232289,-154.95,0.00028944,2]
[370315104,1751950232298,-207.4,0.00029146,2]
[370315106,1751950232308,-250.0,0.0002924,2]
[370315109,1751950232318,-2434.0,0.00029311,7]
[370315111,1751950232327,-166.77,0.00029396,2]
[370315113,1751950232337,-2048.10930617,0.00029417,21]
[370315115,1751950232346,-427.0,0.00029459,7]
[370315117,1751950232355,-429.0,0.00029482,2]
[370315119,1751950232365,-427.0,0.00029609,2]
[370315121,1751950232374,-500.0,0.000297,10]
[370315123,1751950232383,-871.63832789,0.00029729,2]
[370315125,1751950232392,-3430.2044,0.00029763,8]
[370315127,1751950232401,-1000.0,0.000298,10]
[370315129,1751950232411,-300.0,0.00029812,2]
[370315131,1751950232420,-500.0,0.00029812,2]
[370315132,1751950232430,-500.0,0.00029812,2]
[370315135,1751950232440,-166.43090757,0.00029812,2]
[370315136,1751950232449,-500.0,0.00029812,2]
[370315138,1751950232458,-500.0,0.00029812,2]
[370315140,1751950232467,-151.0,0.00029812,2]
[370315142,1751950232480,-151.0,0.00029812,2]
[370315144,1751950232489,-151.0,0.00029812,2]
[370315146,1751950232499,-500.0,0.00029812,2]
[370315148,1751950232508,-284.56032325,0.00029812,2]
[370315150,1751950232517,-151.0,0.00029812,2]
[370315152,1751950232527,-500.0,0.00029812,2]
[370315154,1751950232536,-290.0,0.00029812,2]
[370315156,1751950232546,-500.0,0.00029812,2]
[370315158,1751950232555,-500.0,0.00029812,2]
[370315160,1751950232565,-500.0,0.00029812,2]
[370315162,1751950232574,-248.14886219,0.00029812,2]
[370315164,1751950232583,-255.38143207,0.00029812,2]
[370315166,1751950232592,-218.71097726,0.00029812,2]
[370315168,1751950232601,-300.0,0.00029812,2]
[370315170,1751950232611,-300.0,0.00029812,2]
[370315171,1751950232620,-300.0,0.00029812,2]
[370315174,1751950232630,-151.0,0.00029812,2]
[370315176,1751950232640,-300.0,0.00029812,2]
[370315177,1751950232650,-151.0,0.00029812,2]
[370315179,1751950232659,-151.0,0.00029812,2]
[370315181,1751950232668,-151.0,0.00029812,2]
[370315183,1751950232678,-201.32232001,0.00029812,2]
[370315185,1751950232687,-427.0,0.00029814,2]
[370315187,1751950232697,-13077.28882045,0.0002983,2]
[370315189,1751950232706,-427.0,0.00029877,2]
[370315190,1751950232715,-1600.0,0.000299,10]
[370315191,1751950232725,-2048.10930617,0.00029934,22]
[370315192,1751950232735,-555.90971095,0.00029936,2]
[370315193,1751950232745,-9148.86858423,0.0002998,2]
[370315194,1751950232754,-10712.22866288,0.00029992,3]
[370315195,1751950232767,-798.0,0.00029992,3]
[370315197,1751950232854,-23699.87884499,0.00029992,3]
[370315199,1751950232866,-365.0,0.00029992,3]
[370315202,1751950232883,-1258.62479095,0.00029992,3]
[370315205,1751950232903,-1452.24999998,0.00029992,3]
[370315211,1751950232950,-1784.66812765,0.00029992,3]
[370315215,1751950232981,-254.71770002,0.00029992,3]
[370315217,1751950232993,-21219.19082506,0.00029992,3]
[370315219,1751950233005,-601.30776947,0.00029992,3]
[370315221,1751950233017,-1260.23074267,0.00029992,3]
[370315468,1751950237926,-1000.0,0.00029253,2]
[370315469,1751950237936,-555.90971085,0.00029985,2]
[370315470,1751950237946,-16936378.89749165,0.00029992,3]
[370315625,1751950239843,-241.55415098,0.00029991,2]
[370315627,1751950239853,-299.36756909,0.00029992,3]
[370315648,1751950240059,-2600.0,0.00029992,3]
[370315651,1751950240071,-1045486.29980655,0.00029992,3]
[370315653,1751950240083,-8935.79656887,0.00029992,3]
[370315924,1751950242760,-206.23055032,0.00029991,2]
[370315926,1751950242770,-9254.11742048,0.00029992,3]
[370316228,1751950245840,-151317.17457304,0.00029992,3]
[370316246,1751950246004,-2519.0000009,0.00029992,3]
[370316873,1751950264115,211.51,0.00029128,120]
[370316874,1751950478303,460.0,0.00030136,120]
[370316875,1751950578110,151.36,0.00013699,2]
[370316876,1751950596788,650000.0,0.00030137,120]
[370316877,1751950623565,2700.0,0.00030136,120]
[370316878,1751950638492,604.87152387,0.00030136,120]
[370316882,1751950810260,170.0,0.000139,2]
[370316883,1751950987729,150.0,0.00030135,120]
[370316887,1751951356830,171.08,0.00027653,120]
[370316888,1751951429398,460.0,0.00030136,120]
[370316893,1751951431959,-150.0,0.000181,2]
[370316894,1751951431970,-150.0,0.0001859,2]
[370316895,1751951431979,-150.0,0.0001907,2]
[370316897,1751951431988,-435.35505946,0.000191,2]
[370316898,1751951432017,-282.62494054,0.000191,2]
[370316899,1751951432026,-150.0,0.0001956,2]
[370316900,1751951432036,-300.0,0.0001991,2]
[370316901,1751951432045,-208.46655947,0.0001994,2]
[370316902,1751951432054,-150.0,0.0002004,2]
[370316903,1751951432063,-150.0,0.0002053,2]
[370316904,1751951432073,-150.0,0.0002101,2]
[370316905,1751951432082,-290.0,0.000215,2]
[370316906,1751951432092,-500.0,0.00021699,2]
[370316907,1751951432101,-152.29,0.00023,2]
[370316908,1751951432111,-207.21,0.000249,2]
[370316909,1751951432121,-513.0,0.00025745,2]
[370316910,1751951432130,-300.0,0.00026783,2]
[370316911,1751951432140,-1200.0,0.00026783,2]
[370316912,1751951432150,-153.60250212,0.00026784,2]
[370316913,1751951432160,-151.0,0.00026784,2]
[370316914,1751951432170,-151.0,0.00026784,2]
[370316915,1751951432190,-151.0,0.00026784,2]
[370316916,1751951432202,-151.0,0.00026784,2]
[370316917,1751951432212,-151.0,0.00026784,2]
[370316918,1751951432222,-151.0,0.00026784,2]
[370316919,1751951432232,-151.0,0.00026784,2]
[370316920,1751951432242,-151.0,0.00026784,2]
[370316921,1751951432252,-151.0,0.00026784,2]
[370316922,1751951432262,-151.0,0.00026784,2]
[370316923,1751951432273,-151.0,0.00026784,2]
[370316924,1751951432283,-151.0,0.00026784,2]
[370316925,1751951432293,-151.0,0.00026784,2]
[370316926,1751951432303,-151.0,0.00026784,2]
[370316927,1751951432313,-151.0,0.00026784,2]
[370316928,1751951432323,-2000.0,0.000268,2]
[370316929,1751951432334,-513.0,0.00027302,4]
[370316930,1751951432344,-151.0,0.00027332,2]
[370316931,1751951432354,-600.0,0.00027397,2]
[370316933,1751951432363,-522.55172582,0.00027397,2]
[370316935,1751951432374,-1000.0,0.00027407,2]
[370316937,1751951432383,-200.0,0.00027475,2]
[370316939,1751951432393,-600.0,0.00027497,2]
[370316940,1751951432403,-162.79,0.00027553,2]
[370316941,1751951432413,-449.02069033,0.00027597,2]
[370316942,1751951432423,-152.29,0.000276,2]
[370316944,1751951432432,-1388.0,0.00027624,2]
[370316946,1751951432442,-15161.84964108,0.00027625,2]
[370316948,1751951432455,-4994.93035892,0.00027625,2]
[370316950,1751951432464,-156.95841305,0.00027653,2]
[370316953,1751951432478,-93.04158695,0.00027653,2]
[370316955,1751951432488,-151.0,0.0002788,2]
[370316956,1751951432499,-606.64638681,0.000279,18]
[370316958,1751951432511,-1377.97349306,0.000279,18]
[370316959,1751951432522,-249.42,0.00028021,2]
[370316960,1751951432532,-162.34,0.00028051,2]
[370316961,1751951432542,-162.34,0.00028098,2]
[370316962,1751951432551,-162.67,0.00028105,2]
[370316963,1751951432560,-162.34,0.00028144,2]
[370316964,1751951432569,-162.34,0.00028191,2]
[370316965,1751951432579,-1579.37527876,0.00028192,2]
[370316966,1751951432602,-1125.55154756,0.00028192,2]
[370316967,1751951432631,-1759.21591077,0.00028192,2]
[370316968,1751951432643,-1499.21515664,0.00028192,2]
[370316969,1751951432654,-296.11480993,0.00028192,2]
[370316970,1751951432666,-492.29320053,0.00028192,2]
[370316971,1751951432689,-339.89652692,0.00028192,2]
[370316972,1751951432701,-1839.04986253,0.00028192,2]
[370316973,1751951432720,-3633.06081313,0.00028192,2]
[370316974,1751951432729,-166.99,0.00028236,2]
[370316975,1751951432738,-162.34,0.00028238,2]
[370316976,1751951432748,-162.34,0.00028285,2]
[370316977,1751951432757,-200.0,0.00028289,2]
[370316978,1751951432767,-162.34,0.00028331,2]
[370316979,1751951432777,-151.0,0.00028428,2]
[370316980,1751951432787,-1210.47494329,0.00028452,19]
[370316981,1751951432799,-774.14493637,0.00028452,19]
[370316982,1751951432809,-5.91513904,0.00028478,2]
[370316983,1751951432830,-148.53486096,0.00028478,2]
[370316984,1751951432840,-513.0,0.00028859,7]
[370316985,1751951432849,-172.61939214,0.00028865,2]
[370316986,1751951432861,-127.38060786,0.00028865,2]
[370316987,1751951432871,-500.0,0.00028865,2]
[370316988,1751951432880,-500.0,0.00028865,2]
[370316989,1751951432890,-500.0,0.00028865,2]
[370316990,1751951432900,-300.0,0.00028865,2]
[370316991,1751951432909,-207.4,0.00028865,2]
[370316992,1751951432919,-1000.0,0.00028865,2]
[370316993,1751951432929,-931.59,0.00028871,2]
[370316994,1751951432939,-800.12,0.00028871,2]
[370316995,1751951432948,-382.82077415,0.00028962,2]
[370316996,1751951437982,-37.17922585,0.00028962,2]
[370316997,1751951437991,-151.0,0.00028976,2]
[370316998,1751951438001,-1984.61987966,0.00029003,20]
[370316999,1751951438010,-1000.0,0.00029393,2]
[370317000,1751951438019,-1000.0,0.000295,3]
[370317001,1751951438029,-843.74444754,0.00029508,2]
[370317002,1751951438038,-151.0,0.00029524,2]
[370317003,1751951438047,-1885.38996747,0.00029555,21]
[370317004,1751951438059,-99.22991219,0.00029555,21]
[370317005,1751951438068,-2000.0,0.000296,2]
[370317006,1751951438077,-300.0,0.000296,10]
[370317007,1751951438086,-101.54818212,0.00029606,2]
[370317008,1751951438251,-312.15236487,0.00029606,2]
[370317009,1751951438263,-1000.0,0.00029606,2]
[370317010,1751951438308,-252.4995474,0.00029606,2]
[370317022,1751951440087,-1907.51532779,0.00029606,2]
[370317023,1751951440199,-460.0,0.00029606,2]
[370317147,1751951446201,-683.97923135,0.00029606,2]
[370317149,1751951453721,203.43,0.00013904,2]
[370317150,1751951509323,2500.0,0.00030136,120]
[370317151,1751952030385,150.5,0.00029601,120]
[370317152,1751952030987,150.5,0.00029591,120]
[370317153,1751952031262,150.5,0.00029581,120]
[370317154,1751952084607,160.21,0.00013699,2]
[370317155,1751952178737,0.37,0.000201,30]
[370317156,1751952257484,150.97243476,0.00030136,120]
[370317157,1751952352906,-151.0,0.0001649,2]
[370317158,1751952352928,-151.0,0.0001649,2]
[370317159,1751952352950,-151.0,0.0001649,2]
[370317160,1751952352970,-151.0,0.0001649,2]
[370317161,1751952352992,-151.0,0.0001649,2]
[370317162,1751952353013,-151.0,0.0001649,2]
[370317163,1751952353034,-151.0,0.0001649,2]
[370317164,1751952353055,-151.0,0.0001649,2]
[370317165,1751952353075,-151.0,0.0001649,2]
[370317166,1751952353096,-151.0,0.0001649,2]
[370317167,1751952353117,-151.0,0.0001649,2]
[370317168,1751952353137,-151.0,0.0001649,2]
[370317169,1751952353158,-151.0,0.0001649,2]
[370317170,1751952353179,-151.0,0.0001649,2]
[370317171,1751952358903,1500.0,0.0002,30]
[370317173,1751952376400,185.49,0.00025466,120]
[370317174,1751952385172,5925.79,0.00016479,2]
[370317194,1751952632263,-515.0,0.00016478,2]
[370317208,1751952632776,-119.45948434,0.00016479,2]
[370317212,1751952632787,-673.93286093,0.00016479,2]
[370317216,1751952632822,-15063.89959073,0.00016479,2]
[370317218,1751952632831,-151.0,0.0001649,2]
[370317219,1751952632841,-151.0,0.0001649,2]
[370317220,1751952632850,-151.0,0.0001649,2]
[370317221,1751952632860,-151.0,0.0001649,2]
[370317222,1751952632870,-301.04848833,0.0001649,2]
[370317223,1751952632880,-2493.24242077,0.000165,2]
[370317224,1751952632891,-150.0,0.000181,2]
[370317225,1751952632900,-150.0,0.0001859,2]
[370317226,1751952632910,-150.0,0.0001907,2]
[370317227,1751952632920,-1845.14176341,0.000192,2]
[370317228,1751952632931,-150.0,0.0001956,2]
[370317229,1751952632941,-1845.14176313,0.00019797,2]
[370317230,1751952632951,-1200.0,0.00019999,2]
[370317231,1751952632962,-8500.0,0.0002,30]
[370317232,1751952632972,-150.0,0.0002004,2]
[370317233,1751952632981,-9999.63,0.000201,30]
[370317234,1751952632991,-150.0,0.0002053,2]
[370317235,1751952633000,-1845.14176313,0.00020693,3]
[370317236,1751952633011,-150.0,0.0002101,2]
[370317237,1751952633020,-150.0,0.000215,2]
[370317238,1751952633030,-1845.14176313,0.0002159,5]
[370317239,1751952633039,-150.0,0.0002199,2]
[370317240,1751952633049,-150.0,0.0002247,2]
[370317241,1751952633058,-1845.14176313,0.00022486,7]
[370317242,1751952633067,-150.0,0.0002296,2]
[370317243,1751952633077,-1845.14176313,0.00023383,9]
[370317244,1751952633087,-150.0,0.0002344,2]
[370317245,1751952633096,-150.0,0.0002393,2]
[370317246,1751952633106,-187.1708811,0.00024279,10]
[370317247,1751952633118,-1657.97088203,0.00024279,10]
[370317248,1751952633128,-150.0,0.0002441,2]
[370317249,1751952633138,-250.0,0.00024473,2]
[370317250,1751952633147,-150.0,0.000249,2]
[370317251,1751952633157,-1845.14176313,0.00025176,12]
[370317252,1751952633167,-150.0,0.0002539,2]
[370317253,1751952633177,-200.0,0.00025437,2]
[370317254,1751952633186,-448.0,0.000256,5]
[370317255,1751952633196,-160.0,0.0002587,2]
[370317256,1751952633205,-794.2272413,0.00026072,14]
[370317257,1751952633217,-1050.91452183,0.00026072,14]
[370317258,1751952633227,-508.0,0.00026859,2]
[370317259,1751952633236,-241.39,0.00026894,2]
[370317260,1751952633246,-1845.14176313,0.00026969,16]
[370317261,1751952633256,-1000.0,0.0002698,2]
[370317262,1751952633266,-364.64,0.00027135,2]
[370317263,1751952633276,-167.86,0.00027206,2]
[370317264,1751952633286,-1000.0,0.00027245,2]
[370317265,1751952633296,-152.98,0.00027273,2]
[370317266,1751952633305,-1000.0,0.00027731,2]
[370317267,1751952633315,-1845.14176313,0.00027866,17]
[370317268,1751952633324,-2000.0,0.000279,2]
[370317269,1751952633334,-168.33981084,0.00028088,2]
[370317270,1751952633346,-331.66018916,0.00028088,2]
[370317271,1751952633355,-500.0,0.00028088,5]
[370317272,1751952633365,-500.5464351,0.00028088,5]
[370317273,1751952633374,-500.0,0.00028088,5]
[370317274,1751952633384,-301.38337574,0.00028133,5]
[370317275,1751952633412,-198.61662426,0.00028133,5]
[370317276,1751952633422,-61.35457511,0.00028133,5]
[370317277,1751952633433,-438.64542489,0.00028133,5]
[370317278,1751952633443,-135.78030719,0.00028437,4]
[370317279,1751952633459,-372.21969281,0.00028437,4]
[370317280,1751952633468,-375.3611002,0.00028442,2]
[370317281,1751952633480,-624.6388998,0.00028442,2]
[370317282,1751952633489,-4591.60468905,0.00028463,7]
[370317283,1751952633501,-263.39531095,0.00028463,7]
[370317284,1751952633511,-400.0,0.000286,10]
[370317285,1751952633520,-504.02055152,0.00028636,2]
[370317286,1751952633530,-1000.0,0.00028636,5]
[370317287,1751952633539,-266.88440944,0.000287,10]
[370317288,1751952633562,-633.11559056,0.000287,10]
[370317289,1751952633571,-1000.0,0.00028701,2]
[370317290,1751952633581,-16.52730128,0.00028755,2]
[370317292,1751952638211,-5019.05445036,0.00028755,2]
[370317293,1751952638222,-3988.73215428,0.00028755,2]
[370317294,1751952638279,-19120.02149078,0.00028755,2]
[370317295,1751952638386,-4262.29750532,0.00028755,2]
[370317296,1751952638556,-2122.14649548,0.00028755,2]
[370317454,1751952640437,-2676.103192,0.00028755,2]
[370317458,1751952640468,-669.42751932,0.00028755,2]
[370317474,1751952640619,-1103.20923561,0.00028755,2]
[370317482,1751952640688,-3296.29591038,0.00028755,2]
[370317484,1751952640700,-5894.72445598,0.00028755,2]
[370317486,1751952640710,-5889.7694546,0.00028755,2]
[370317489,1751952640722,-641.77529151,0.00028755,2]
[370317491,1751952640733,-925.51228013,0.00028755,2]
[370317500,1751952640814,-13071.74873117,0.00028755,2]
[370317749,1751952643358,-284.81912757,0.00028088,5]
[370317752,1751952643374,-14055.11194035,0.00028755,2]
[370317758,1751952643428,-3745.74719911,0.00028755,2]
[370317765,1751952643482,-19775.70500233,0.00028755,2]
[370317767,1751952643500,-758.14934782,0.00028755,2]
[370317779,1751952643601,-1275.370542,0.00028755,2]
[370317797,1751952643773,-15634.74041965,0.00028755,2]
[370317800,1751952643792,-2725.14917778,0.00028755,2]
[370317803,1751952643810,-676.2513546,0.00028755,2]
[370318027,1751952646270,-2338.11379006,0.00028755,2]
[370318045,1751952646442,-1968.65760391,0.00028755,2]
[370318058,1751952646558,-8781.8511882,0.00028755,2]
[370318060,1751952646570,-509.13161371,0.00028755,2]
[370318062,1751952646581,-459.58986104,0.00028755,2]
[370318064,1751952646592,-387.35182517,0.00028755,2]
[370318233,1751952863732,2330.10864701,0.000301,120]
[370318234,1751953043955,3001.3,0.000301,120]
[370318235,1751953275724,159.5,0.00013699,2]
[370318236,1751953447751,165.27,0.00026769,120]
[370318257,1751953831564,-150.0,0.000181,2]
[370318258,1751953831574,-150.0,0.0001859,2]
[370318259,1751953831584,-150.0,0.0001907,2]
[370318260,1751953831594,-150.870321,0.00019178,2]
[370318261,1751953831604,-235.40264223,0.00019178,2]
[370318262,1751953831615,-396.67437077,0.00019178,2]
[370318263,1751953831625,-157.593787,0.00019178,2]
[370318264,1751953831634,-13.35642523,0.00019178,2]
[370318265,1751953831686,-146.27311277,0.00019178,2]
[370318266,1751953831696,-744.358026,0.00019178,2]
[370318267,1751953831705,-266.38225769,0.00019178,2]
[370318268,1751953831717,-473.03531131,0.00019178,2]
[370318269,1751953831727,-184.79089132,0.00019178,2]
[370318270,1751953831736,-632.077013,0.00019452,2]
[370318271,1751953831746,-744.358026,0.00019452,2]
[370318272,1751953831756,-739.417569,0.00019452,2]
[370318273,1751953831766,-150.870321,0.00019489,2]
[370318274,1751953831776,-632.077013,0.00019489,2]
[370318275,1751953831786,-744.358026,0.00019489,2]
[370318276,1751953831795,-652.1394049,0.00019489,2]
[370318277,1751953831807,-87.2781641,0.00019489,2]
[370318279,1751953831817,-632.077013,0.0001949,2]
[370318281,1751953831827,-744.358026,0.0001949,2]
[370318282,1751953831836,-739.417569,0.0001949,2]
[370318283,1751953831847,-150.870321,0.00019492,2]
[370318284,1751953831857,-301.84407996,0.00019492,2]
[370318285,1751953831869,-330.23293304,0.00019492,2]
[370318287,1751953831879,-157.593787,0.00019492,2]
[370318289,1751953831889,-159.629538,0.00019492,2]
[370318291,1751953831899,-744.358026,0.00019492,2]
[370318293,1751953831909,-739.417569,0.00019492,2]
[370318295,1751953831918,-632.077013,0.00019494,2]
[370318297,1751953831928,-744.358026,0.00019494,2]
[370318299,1751953831937,-739.417569,0.00019494,2]
[370318302,1751953831947,-150.0,0.0001956,2]
[370318304,1751953831956,-150.870321,0.00019599,2]
[370318307,1751953831965,-632.077013,0.00019599,2]
[370318309,1751953831974,-739.417569,0.00019599,2]
[370318311,1751953831985,-744.358026,0.00019599,2]
[370318313,1751953831994,-632.077013,0.00019726,2]
[370318315,1751953832003,-739.417569,0.00019726,2]
[370318317,1751953832013,-744.358026,0.00019726,2]
[370318318,1751953832023,-150.870321,0.0002,2]
[370318320,1751953832032,-157.593787,0.0002,2]
[370318322,1751953832042,-632.077013,0.0002,2]
[370318324,1751953832052,-159.629538,0.0002,2]
[370318326,1751953832062,-739.417569,0.0002,2]
[370318328,1751953832071,-744.358026,0.0002,2]
[370318330,1751953832081,-150.0,0.0002004,2]
[370318332,1751953832090,-632.077013,0.00020273,2]
[370318334,1751953832100,-739.417569,0.00020273,2]
[370318336,1751953832109,-744.358026,0.00020273,2]
[370318338,1751953832119,-150.0,0.0002053,2]
[370318340,1751953832128,-150.870321,0.00020547,2]
[370318342,1751953832138,-632.077013,0.00020547,2]
[370318344,1751953832147,-632.077013,0.00020821,2]
[370318346,1751953832156,-150.0,0.0002101,2]
[370318348,1751953832165,-150.870321,0.00021095,2]
[370318350,1751953832174,-13.80498764,0.00021095,2]
[370318352,1751953832186,-143.78879936,0.00021095,2]
[370318354,1751953832196,-159.629538,0.00021095,2]
[370318356,1751953832205,-632.077013,0.00021095,2]
[370318358,1751953832214,-632.077013,0.00021369,2]
[370318360,1751953832224,-200.0,0.000215,2]
[370318362,1751953832233,-150.870321,0.00021643,2]
[370318364,1751953832242,-632.077013,0.00021643,2]
[370318366,1751953832252,-150.870321,0.00021917,2]
[370318368,1751953832261,-632.077013,0.00021917,2]
[370318370,1751953832271,-632.077013,0.00022191,2]
[370318372,1751953832280,-150.870321,0.00022465,2]
[370318374,1751953832289,-157.593787,0.00022465,2]
[370318376,1751953832298,-159.629538,0.00022465,2]
[370318378,1751953832308,-632.077013,0.00022465,2]
[370318380,1751953832317,-632.077013,0.00022739,2]
[370318382,1751953832328,-150.870321,0.00023013,2]
[370318383,1751953832337,-632.077013,0.00023013,2]
[370318385,1751953832346,-150.870321,0.00023561,2]
[370318387,1751953832356,-157.593787,0.00023561,2]
[370318389,1751953832365,-159.629538,0.00023561,2]
[370318391,1751953832375,-500.0,0.00023671,2]
[370318393,1751953832384,-250.0,0.00023916,2]
[370318395,1751953832393,-159.5,0.00023973,2]
[370318397,1751953832401,-150.870321,0.00024109,2]
[370318399,1751953832411,-271.50218543,0.0002429,7]
[370318401,1751953832421,-5509.0,0.000243,3]
[370318403,1751953832430,-300.0,0.00024399,2]
[370318405,1751953832439,-157.593787,0.00024657,2]
[370318407,1751953832452,-150.870321,0.00024657,2]
[370318436,1751953832730,-159.629538,0.00024657,2]
[370318438,1751953832741,-5509.0,0.000248,5]
[370318441,1751953832751,-150.870321,0.00025205,2]
[370318442,1751953832761,-2000.0,0.000255,2]
[370318444,1751953832771,-2054.11925427,0.000259,14]
[370318446,1751953832780,-2121.45,0.00026122,2]
[370318448,1751953832790,-5000.0,0.00026153,2]
[370318450,1751953832799,-171.56,0.00026215,2]
[370318452,1751953832808,-502.68308507,0.00026354,2]
[370318454,1751953832818,-508.0,0.00026437,2]
[370318456,1751953832827,-420.0,0.00026449,2]
[370318458,1751953832836,-2054.11925414,0.00026486,15]
[370318460,1751953832845,-522.87,0.00026619,2]
[370318462,1751953832855,-756.16,0.00026728,2]
[370318464,1751953832864,-756.16,0.00026742,2]
[370318466,1751953832873,-756.16,0.00026756,2]
[370318468,1751953832882,-756.16,0.0002677,2]
[370318470,1751953832891,-966.93,0.00026773,2]
[370318472,1751953832901,-756.16,0.00026784,2]
[370318474,1751953832911,-756.16,0.00026798,2]
[370318476,1751953832919,-151.0,0.00026808,2]
[370318478,1751953832928,-151.0,0.00026808,2]
[370318479,1751953832938,-151.0,0.00026808,2]
[370318481,1751953832947,-151.0,0.00026808,2]
[370318483,1751953832957,-151.0,0.00026808,2]
[370318485,1751953832967,-151.0,0.00026808,2]
[370318487,1751953832976,-151.0,0.00026808,2]
[370318489,1751953832985,-151.0,0.00026808,2]
[370318491,1751953832995,-151.0,0.00026808,2]
[370318493,1751953833004,-151.0,0.00026808,2]
[370318495,1751953833014,-151.0,0.00026808,2]
[370318497,1751953833023,-151.0,0.00026808,2]
[370318499,1751953833033,-151.0,0.00026808,2]
[370318501,1751953833042,-151.0,0.00026808,2]
[370318503,1751953833051,-756.16,0.00026812,2]
[370318505,1751953833061,-1000.0,0.00026818,2]
[370318507,1751953833070,-13129.4366995,0.00026824,2]
[370318509,1751953833087,-661.01351253,0.00026824,2]
[370318935,1751953837448,-744.358026,0.00020547,2]
[370318937,1751953837461,-739.417569,0.00020547,2]
[370318939,1751953837470,-744.358026,0.00020821,2]
[370318941,1751953837479,-739.417569,0.00020821,2]
[370318943,1751953837489,-744.358026,0.00021095,2]
[370318945,1751953837499,-739.417569,0.00021095,2]
[370318946,1751953837508,-744.358026,0.00021369,2]
[370318949,1751953837518,-739.417569,0.00021369,2]
[370318950,1751953837527,-744.358026,0.00021643,2]
[370318952,1751953837537,-739.417569,0.00021643,2]
[370318954,1751953837547,-744.358026,0.00021917,2]
[370318956,1751953837555,-739.417569,0.00021917,2]
[370318958,1751953837565,-744.358026,0.00022191,2]
[370318960,1751953837574,-739.417569,0.00022191,2]
[370318962,1751953837583,-744.358026,0.00022465,2]
[370318964,1751953837593,-739.417569,0.00022465,2]
[370318966,1751953837602,-744.358026,0.00022739,2]
[370318968,1751953837612,-739.417569,0.00022739,2]
[370318970,1751953837622,-744.358026,0.00023013,2]
[370318971,1751953837631,-739.417569,0.00023013,2]
[370318973,1751953837641,-632.077013,0.00023287,2]
[370318974,1751953837650,-744.358026,0.00023287,2]
[370318976,1751953837660,-632.077013,0.00023561,2]
[370318978,1751953837669,-744.358026,0.00023561,2]
[370318979,1751953837678,-632.077013,0.00023835,2]
[370318981,1751953837687,-744.358026,0.00023835,2]
[370318983,1751953837697,-632.077013,0.00024109,2]
[370318985,1751953837706,-744.358026,0.00024109,2]
[370318986,1751953837715,-632.077013,0.00024383,2]
[370318988,1751953837725,-744.358026,0.00024383,2]
[370318990,1751953837735,-632.077013,0.00024657,2]
[370318991,1751953837744,-632.077013,0.00024931,2]
[370318993,1751953837753,-10109.54978797,0.00026824,2]
[370318994,1751953837763,-756.16,0.00026826,2]
[370318996,1751953837772,-756.16,0.0002684,2]
[370318998,1751953837781,-200.0,0.00026846,2]
[370319020,1751953838069,-756.16,0.00026854,2]
[370319023,1751953838087,-756.16,0.00026868,2]
[370319025,1751953838097,-756.16,0.00026883,2]
[370319027,1751953838106,-756.16,0.00026897,2]
[370319028,1751953838115,-756.16,0.00026911,2]
[370319030,1751953838125,-497.03,0.0002692,2]
[370319032,1751953838134,-756.16,0.00026925,2]
[370319033,1751953838143,-756.16,0.00026939,2]
[370319035,1751953838152,-756.16,0.00026953,2]